[Event "*** Titled Tuesday Blitz"]
[Site "Chess.com"]
[Date "2020.02.04"]
[Round "5"]
[White "crescentmoon2411"]
[Black "SantoBlue"]
[Result "1-0"]
[WhiteElo "3042"]
[BlackElo "2838"]
[TimeControl "180+2"]
[EndTime "10:04:37 PST"]
[Termination "crescentmoon2411 won by resignation"]

1. d4 {[%clk 0:03:01.9]} 1... Nf6 {[%clk 0:02:59.9]} 2. Nf3 {[%clk 0:03:02.2]}
2... d5 {[%clk 0:03:00.4]} 3. Bf4 {[%clk 0:03:02.7]} 3... e6 {[%clk 0:03:01.7]}
4. e3 {[%clk 0:03:04]} 4... Be7 {[%clk 0:03:03]} 5. c4 {[%clk 0:03:04.3]} 5...
Nbd7 {[%clk 0:03:04.2]} 6. Nc3 {[%clk 0:03:05]} 6... O-O {[%clk 0:03:02.3]} 7.
Be2 {[%clk 0:03:02.5]} 7... dxc4 {[%clk 0:03:03.2]} 8. Bxc4 {[%clk 0:03:03.3]}
8... c5 {[%clk 0:03:04.5]} 9. O-O {[%clk 0:02:57.8]} 9... cxd4 {[%clk
0:03:05.7]} 10. Qxd4 {[%clk 0:02:56.4]} 10... Nb6 {[%clk 0:03:06.7]} 11. Bb3
{[%clk 0:02:51.8]} 11... Qxd4 {[%clk 0:03:05.8]} 12. Nxd4 {[%clk 0:02:53.7]}
12... Bd7 {[%clk 0:03:07.4]} 13. Rfd1 {[%clk 0:02:52.7]} 13... Nbd5 {[%clk
0:02:51.9]} 14. Nxd5 {[%clk 0:02:46.2]} 14... Nxd5 {[%clk 0:02:52.6]} 15. Nf5
{[%clk 0:02:29.8]} 15... Bf6 {[%clk 0:02:51.9]} 16. Bxd5 {[%clk 0:02:21.1]}
16... exd5 {[%clk 0:02:52.9]} 17. Nd4 {[%clk 0:02:19.1]} 17... Rac8 {[%clk
0:02:46.4]} 18. Bd6 {[%clk 0:02:14.2]} 18... Rfd8 {[%clk 0:02:44.1]} 19. Bb4
{[%clk 0:02:14.2]} 19... Rc4 {[%clk 0:02:35.7]} 20. Bc3 {[%clk 0:02:14.6]} 20...
Bxd4 {[%clk 0:02:36.6]} 21. Rxd4 {[%clk 0:02:07.9]} 21... Rxd4 {[%clk
0:02:33.4]} 22. Bxd4 {[%clk 0:02:09.8]} 22... b6 {[%clk 0:02:34.7]} 23. a4
{[%clk 0:02:02.8]} 23... Rc8 {[%clk 0:02:35.5]} 24. f3 {[%clk 0:02:00.8]} 24...
h5 {[%clk 0:02:19.7]} 25. h4 {[%clk 0:01:55.8]} 25... Rc4 {[%clk 0:02:05.5]} 26.
a5 {[%clk 0:01:56.2]} 26... Rb4 {[%clk 0:01:54.7]} 27. axb6 {[%clk 0:01:54.8]}
27... axb6 {[%clk 0:01:55.7]} 28. Ra7 {[%clk 0:01:33.3]} 28... Be6 {[%clk
0:01:52.4]} 29. Rb7 {[%clk 0:01:29.6]} 29... b5 {[%clk 0:01:50.9]} 30. Bc3
{[%clk 0:01:25.2]} 30... Rxh4 {[%clk 0:01:50.6]} 31. Bd4 {[%clk 0:01:26]} 31...
g5 {[%clk 0:01:41.6]} 32. Rxb5 {[%clk 0:01:21]} 32... Kh7 {[%clk 0:01:42.6]} 33.
Rb8 {[%clk 0:01:18.4]} 33... Kg6 {[%clk 0:01:43.8]} 34. b4 {[%clk 0:01:19.4]}
34... g4 {[%clk 0:01:45.2]} 35. b5 {[%clk 0:01:19.9]} 35... gxf3 {[%clk
0:01:46.2]} 36. gxf3 {[%clk 0:01:20.5]} 36... Rh3 {[%clk 0:01:47.4]} 37. Kg2
{[%clk 0:01:20.1]} 37... h4 {[%clk 0:01:48]} 38. Rg8+ {[%clk 0:01:20.3]} 38...
Kh7 {[%clk 0:01:47.8]} 39. Rg7+ {[%clk 0:01:21.1]} 39... Kh6 {[%clk 0:01:48]}
40. b6 {[%clk 0:01:21.8]} 1-0

[Event "*** Titled Tuesday Blitz"]
[Site "Chess.com"]
[Date "2020.02.04"]
[Round "5"]
[White "cancrushyou"]
[Black "Grieve72"]
[Result "0-1"]
[WhiteElo "2481"]
[BlackElo "2333"]
[TimeControl "180+2"]
[EndTime "10:05:06 PST"]
[Termination "Grieve72 won by resignation"]

1. d4 {[%clk 0:03:01.9]} 1... f5 {[%clk 0:02:59.8]} 2. c4 {[%clk 0:02:57.4]}
2... Nf6 {[%clk 0:02:59.6]} 3. Nc3 {[%clk 0:02:57.5]} 3... d6 {[%clk 0:02:59.7]}
4. g3 {[%clk 0:02:57.9]} 4... g6 {[%clk 0:03:00.3]} 5. Bg2 {[%clk 0:02:59]} 5...
Bg7 {[%clk 0:03:01.8]} 6. Nh3 {[%clk 0:02:56]} 6... O-O {[%clk 0:02:59.7]} 7. d5
{[%clk 0:02:56]} 7... Na6 {[%clk 0:02:55.7]} 8. Nf4 {[%clk 0:02:56.3]} 8... Nc5
{[%clk 0:02:53.9]} 9. h4 {[%clk 0:02:56.5]} 9... Qe8 {[%clk 0:02:36.4]} 10. Be3
{[%clk 0:02:45.3]} 10... Nfe4 {[%clk 0:02:25.8]} 11. Bd4 {[%clk 0:02:29.3]}
11... Bh6 {[%clk 0:02:19.6]} 12. Nxe4 {[%clk 0:02:22.9]} 12... Nxe4 {[%clk
0:02:18.4]} 13. Qc2 {[%clk 0:02:20.5]} 13... c5 {[%clk 0:02:05.6]} 14. dxc6
{[%clk 0:02:06.2]} 14... e5 {[%clk 0:02:02.7]} 15. Nd5 {[%clk 0:01:35.8]} 15...
exd4 {[%clk 0:02:01]} 16. Nc7 {[%clk 0:01:29.2]} 16... Qxc6 {[%clk 0:02:01]} 17.
Nxa8 {[%clk 0:01:30.2]} 17... Be6 {[%clk 0:01:49.2]} 18. O-O {[%clk 0:01:30]}
18... Rxa8 {[%clk 0:01:47.7]} 19. b3 {[%clk 0:01:26.7]} 19... b5 {[%clk
0:01:38.8]} 20. Rfd1 {[%clk 0:01:20.5]} 20... Bg7 {[%clk 0:01:27.5]} 21. Rac1
{[%clk 0:01:13.1]} 21... Rc8 {[%clk 0:01:28.4]} 22. Qd3 {[%clk 0:00:56.8]} 22...
bxc4 {[%clk 0:01:20]} 23. bxc4 {[%clk 0:00:58.7]} 23... Bxc4 {[%clk 0:01:20]}
24. Qa3 {[%clk 0:00:57.3]} 24... Qc5 {[%clk 0:01:13.1]} 25. Qb2 {[%clk
0:00:37.4]} 25... d3 {[%clk 0:01:03.4]} 26. exd3 {[%clk 0:00:36.1]} 0-1

[Event "*** Titled Tuesday Blitz"]
[Site "Chess.com"]
[Date "2020.02.04"]
[Round "5"]
[White "Majkelopulos"]
[Black "Bryakin_Mikhail"]
[Result "1-0"]
[WhiteElo "2482"]
[BlackElo "2711"]
[TimeControl "180+2"]
[EndTime "10:05:15 PST"]
[Termination "Majkelopulos won by resignation"]

1. e4 {[%clk 0:02:58.7]} 1... d5 {[%clk 0:02:37.6]} 2. exd5 {[%clk 0:02:59]}
2... Nf6 {[%clk 0:02:36.8]} 3. Nc3 {[%clk 0:03:00.6]} 3... Nxd5 {[%clk
0:02:36.5]} 4. g3 {[%clk 0:02:58.1]} 4... Nxc3 {[%clk 0:02:36.3]} 5. bxc3 {[%clk
0:02:59.1]} 5... Qd5 {[%clk 0:02:37]} 6. Qf3 {[%clk 0:03:00.2]} 6... Qxf3 {[%clk
0:02:35.7]} 7. Nxf3 {[%clk 0:03:02.1]} 7... b6 {[%clk 0:02:34.6]} 8. Bg2 {[%clk
0:02:59.7]} 8... Bb7 {[%clk 0:02:36.1]} 9. O-O {[%clk 0:03:01.4]} 9... Nd7
{[%clk 0:02:36.4]} 10. Re1 {[%clk 0:03:00.8]} 10... e6 {[%clk 0:02:37.2]} 11. d4
{[%clk 0:02:56.7]} 11... Be7 {[%clk 0:02:38.2]} 12. Bf4 {[%clk 0:02:57]} 12...
Bd6 {[%clk 0:02:36.8]} 13. Ne5 {[%clk 0:02:54.2]} 13... Bxg2 {[%clk 0:02:37]}
14. Kxg2 {[%clk 0:02:55.8]} 14... Nxe5 {[%clk 0:02:36.9]} 15. Bxe5 {[%clk
0:02:56.5]} 15... Bxe5 {[%clk 0:02:38.2]} 16. Rxe5 {[%clk 0:02:58.3]} 16...
O-O-O {[%clk 0:02:35.9]} 17. Rae1 {[%clk 0:02:49.7]} 17... Rd6 {[%clk
0:02:36.6]} 18. R1e3 {[%clk 0:02:41.4]} 18... Rhd8 {[%clk 0:02:36.4]} 19. g4
{[%clk 0:02:37.1]} 19... Rc6 {[%clk 0:02:36.3]} 20. g5 {[%clk 0:02:38.4]} 20...
Rc4 {[%clk 0:02:37.4]} 21. Rh3 {[%clk 0:02:38.5]} 21... Rh8 {[%clk 0:02:36.6]}
22. g6 {[%clk 0:02:37.1]} 22... fxg6 {[%clk 0:02:28.3]} 23. Rxe6 {[%clk
0:02:38.4]} 23... Ra4 {[%clk 0:02:28.7]} 24. Rxg6 {[%clk 0:02:38.4]} 24... Rxa2
{[%clk 0:02:28.4]} 25. Rxg7 {[%clk 0:02:39.4]} 25... Rxc2 {[%clk 0:02:30]} 26.
Rhxh7 {[%clk 0:02:39]} 26... Rxh7 {[%clk 0:02:31.9]} 27. Rxh7 {[%clk 0:02:40.9]}
27... Rxc3 {[%clk 0:02:33.5]} 28. h4 {[%clk 0:02:42.6]} 28... a5 {[%clk
0:02:33.4]} 29. h5 {[%clk 0:02:44.2]} 29... a4 {[%clk 0:02:31.2]} 30. Rg7 {[%clk
0:02:31.8]} 30... a3 {[%clk 0:02:21.8]} 31. h6 {[%clk 0:02:32.7]} 31... a2
{[%clk 0:01:49.7]} 32. h7 {[%clk 0:02:26.7]} 32... a1=Q {[%clk 0:01:50.3]} 33.
h8=Q+ {[%clk 0:02:28.2]} 33... Kb7 {[%clk 0:01:51.7]} 34. Rg8 {[%clk 0:02:19.3]}
34... Qe1 {[%clk 0:01:44.9]} 35. Rb8+ {[%clk 0:02:18]} 35... Ka6 {[%clk
0:01:46.3]} 36. Ra8+ {[%clk 0:02:17.2]} 36... Kb5 {[%clk 0:01:46.9]} 37. Qe5+
{[%clk 0:02:13.4]} 37... Qxe5 {[%clk 0:01:46.7]} 38. dxe5 {[%clk 0:02:15.3]}
38... Kc6 {[%clk 0:01:46.8]} 39. Rd8 {[%clk 0:02:12.9]} 39... Rc1 {[%clk
0:01:42.2]} 40. f4 {[%clk 0:02:11.4]} 40... b5 {[%clk 0:01:37.3]} 41. Kf3 {[%clk
0:02:11.6]} 41... b4 {[%clk 0:01:36.3]} 42. e6 {[%clk 0:02:12.4]} 42... Re1
{[%clk 0:01:35.4]} 43. f5 {[%clk 0:02:13.9]} 43... b3 {[%clk 0:01:36.4]} 44. Rb8
{[%clk 0:02:12.4]} 44... Rf1+ {[%clk 0:01:32.9]} 45. Ke4 {[%clk 0:02:12.8]}
45... Rb1 {[%clk 0:01:19.8]} 46. Ke5 {[%clk 0:02:10.2]} 46... Re1+ {[%clk
0:01:12]} 47. Kf6 {[%clk 0:02:11.6]} 47... Re3 {[%clk 0:01:13.5]} 48. e7 {[%clk
0:02:08.3]} 48... Kc5 {[%clk 0:01:10.3]} 49. e8=Q {[%clk 0:02:09]} 49... Rxe8
{[%clk 0:01:07.8]} 50. Rxe8 {[%clk 0:02:10.9]} 50... Kc4 {[%clk 0:01:09.7]} 51.
Kg7 {[%clk 0:02:08.5]} 51... c5 {[%clk 0:01:11.1]} 52. f6 {[%clk 0:02:09.9]} 1-0

[Event "*** Titled Tuesday Blitz"]
[Site "Chess.com"]
[Date "2020.02.04"]
[Round "5"]
[White "mitrabhaa"]
[Black "secretsuperstar7"]
[Result "1-0"]
[WhiteElo "2572"]
[BlackElo "2249"]
[TimeControl "180+2"]
[EndTime "10:05:18 PST"]
[Termination "mitrabhaa won by checkmate"]

1. d4 {[%clk 0:02:40.7]} 1... Nf6 {[%clk 0:02:58.6]} 2. c4 {[%clk 0:02:41.3]}
2... e6 {[%clk 0:02:58.5]} 3. Nc3 {[%clk 0:02:41.9]} 3... Bb4 {[%clk 0:02:58.6]}
4. Qc2 {[%clk 0:02:42.6]} 4... d5 {[%clk 0:02:58.2]} 5. Nf3 {[%clk 0:02:42.6]}
5... dxc4 {[%clk 0:02:48.4]} 6. e4 {[%clk 0:02:38.3]} 6... b5 {[%clk 0:02:46.3]}
7. Bg5 {[%clk 0:02:36.9]} 7... h6 {[%clk 0:02:29.8]} 8. Bh4 {[%clk 0:02:30.2]}
8... g5 {[%clk 0:02:28.6]} 9. Bg3 {[%clk 0:02:25.3]} 9... Bb7 {[%clk 0:02:19.4]}
10. e5 {[%clk 0:02:16.9]} 10... Nd5 {[%clk 0:02:07.6]} 11. Be2 {[%clk
0:02:13.5]} 11... a6 {[%clk 0:01:57.3]} 12. h4 {[%clk 0:02:08.9]} 12... g4
{[%clk 0:01:48.3]} 13. Nd2 {[%clk 0:02:08.1]} 13... Nxc3 {[%clk 0:01:44.2]} 14.
bxc3 {[%clk 0:02:01.3]} 14... Be7 {[%clk 0:01:43.3]} 15. Bxg4 {[%clk 0:01:55.3]}
15... Bxg2 {[%clk 0:01:42.8]} 16. Rg1 {[%clk 0:01:55.6]} 16... Bb7 {[%clk
0:01:41.5]} 17. Bh5 {[%clk 0:01:56.6]} 17... Nc6 {[%clk 0:01:19.7]} 18. Bf4
{[%clk 0:01:49.2]} 18... Bf8 {[%clk 0:01:09.2]} 19. Bxf7+ {[%clk 0:01:38.2]}
19... Kxf7 {[%clk 0:01:05]} 20. Qg6+ {[%clk 0:01:36.5]} 20... Ke7 {[%clk
0:01:06.1]} 21. Qf6+ {[%clk 0:01:38.4]} 21... Kd7 {[%clk 0:01:07.3]} 22. Qxh8
{[%clk 0:01:40.3]} 22... Qxh4 {[%clk 0:01:05.7]} 23. Qh7+ {[%clk 0:01:35.1]}
23... Be7 {[%clk 0:01:02.2]} 24. Ne4 {[%clk 0:01:27.5]} 24... Rf8 {[%clk
0:00:43.5]} 25. Nc5+ {[%clk 0:01:18.4]} 25... Kc8 {[%clk 0:00:44]} 26. Nxe6
{[%clk 0:01:19.1]} 26... Rxf4 {[%clk 0:00:35.8]} 27. Rg8+ {[%clk 0:01:10.3]}
27... Kd7 {[%clk 0:00:35.5]} 28. Nc5# {[%clk 0:01:10.4]} 1-0

[Event "*** Titled Tuesday Blitz"]
[Site "Chess.com"]
[Date "2020.02.04"]
[Round "5"]
[White "DonPreuss"]
[Black "cottage_cheese"]
[Result "1-0"]
[WhiteElo "2191"]
[BlackElo "2230"]
[TimeControl "180+2"]
[EndTime "10:05:19 PST"]
[Termination "DonPreuss won by resignation"]

1. d4 {[%clk 0:03:00.8]} 1... d5 {[%clk 0:02:56]} 2. e4 {[%clk 0:03:01.8]} 2...
e6 {[%clk 0:02:55.9]} 3. Nc3 {[%clk 0:03:02.9]} 3... Bb4 {[%clk 0:02:54.5]} 4.
exd5 {[%clk 0:02:59.5]} 4... exd5 {[%clk 0:02:54.5]} 5. Bd3 {[%clk 0:03:01.1]}
5... Nc6 {[%clk 0:02:29.9]} 6. Ne2 {[%clk 0:03:01.4]} 6... Nge7 {[%clk
0:02:25.6]} 7. O-O {[%clk 0:03:01.7]} 7... O-O {[%clk 0:02:06.5]} 8. Ng3 {[%clk
0:02:59.4]} 8... Be6 {[%clk 0:01:58.7]} 9. Qh5 {[%clk 0:02:59.8]} 9... g6 {[%clk
0:01:53.9]} 10. Qh6 {[%clk 0:03:00.7]} 10... f6 {[%clk 0:01:15.2]} 11. Re1
{[%clk 0:02:09.5]} 11... Qd7 {[%clk 0:01:08.3]} 12. Be3 {[%clk 0:01:33.2]} 12...
Nf5 {[%clk 0:00:56.6]} 13. Nxf5 {[%clk 0:01:33.3]} 13... Bxf5 {[%clk 0:00:57.7]}
14. Bxf5 {[%clk 0:01:24.8]} 14... Qxf5 {[%clk 0:00:59.6]} 15. Rec1 {[%clk
0:01:09.4]} 15... Rfe8 {[%clk 0:00:40.3]} 16. Ne2 {[%clk 0:01:09.1]} 16... Bd6
{[%clk 0:00:38.2]} 17. Ng3 {[%clk 0:01:07.8]} 17... Qd7 {[%clk 0:00:32.5]} 18.
c3 {[%clk 0:01:07.2]} 18... Ne7 {[%clk 0:00:29.8]} 19. Re1 {[%clk 0:01:01.2]}
19... Rad8 {[%clk 0:00:23.4]} 20. Qh4 {[%clk 0:00:57.9]} 20... Rf8 {[%clk
0:00:17.5]} 21. Bh6 {[%clk 0:00:55.9]} 21... Bf4 {[%clk 0:00:17]} 22. Qxf4
{[%clk 0:00:49.8]} 1-0

[Event "*** Titled Tuesday Blitz"]
[Site "Chess.com"]
[Date "2020.02.04"]
[Round "5"]
[White "Kostina_Nadezhda"]
[Black "Hanging_pointer"]
[Result "0-1"]
[WhiteElo "2165"]
[BlackElo "2398"]
[TimeControl "180+2"]
[EndTime "10:05:26 PST"]
[Termination "Hanging_pointer won by resignation"]

1. e4 {[%clk 0:03:01.9]} 1... c6 {[%clk 0:02:56.2]} 2. d4 {[%clk 0:03:00.8]}
2... d5 {[%clk 0:02:58.1]} 3. Nc3 {[%clk 0:02:58.4]} 3... dxe4 {[%clk
0:02:58.2]} 4. Nxe4 {[%clk 0:02:58.3]} 4... Nf6 {[%clk 0:02:59.6]} 5. Ng3 {[%clk
0:02:57.2]} 5... Bg4 {[%clk 0:02:58.7]} 6. Qd3 {[%clk 0:02:53]} 6... e6 {[%clk
0:02:58.1]} 7. Bg5 {[%clk 0:02:42.3]} 7... Be7 {[%clk 0:02:57.7]} 8. h3 {[%clk
0:02:41.5]} 8... Bh5 {[%clk 0:02:52.4]} 9. Bxf6 {[%clk 0:02:38.4]} 9... Bxf6
{[%clk 0:02:54.3]} 10. Nxh5 {[%clk 0:02:38.6]} 10... Qa5+ {[%clk 0:02:55.3]} 11.
Qd2 {[%clk 0:02:32.5]} 11... Qxh5 {[%clk 0:02:57.2]} 12. Nf3 {[%clk 0:02:27.7]}
12... Nd7 {[%clk 0:02:51.7]} 13. Bd3 {[%clk 0:02:24.2]} 13... O-O {[%clk
0:02:44.5]} 14. O-O {[%clk 0:02:23.1]} 14... Rfd8 {[%clk 0:02:43.8]} 15. Qb4
{[%clk 0:02:21.2]} 15... c5 {[%clk 0:02:38.6]} 16. dxc5 {[%clk 0:02:15.2]} 16...
Nxc5 {[%clk 0:02:37.1]} 17. Be2 {[%clk 0:01:55]} 17... b6 {[%clk 0:02:29.9]} 18.
Rad1 {[%clk 0:01:53.4]} 18... Qf5 {[%clk 0:02:21.7]} 19. c3 {[%clk 0:01:30.8]}
19... Qc2 {[%clk 0:02:14.3]} 20. Rxd8+ {[%clk 0:01:12.6]} 20... Rxd8 {[%clk
0:02:13.2]} 21. Re1 {[%clk 0:01:13.6]} 21... Na4 {[%clk 0:02:07.5]} 22. Bb5
{[%clk 0:01:00.7]} 22... Nxb2 {[%clk 0:01:56.2]} 23. Re2 {[%clk 0:00:52.4]}
23... Qc1+ {[%clk 0:01:56.8]} 24. Kh2 {[%clk 0:00:53]} 24... Bxc3 {[%clk
0:01:43.7]} 25. Qh4 {[%clk 0:00:48.4]} 25... Bf6 {[%clk 0:01:38.3]} 26. Qe4
{[%clk 0:00:47.3]} 26... Qc7+ {[%clk 0:01:19]} 27. g3 {[%clk 0:00:46]} 27... Nd1
{[%clk 0:01:20.2]} 28. Kg2 {[%clk 0:00:43.4]} 28... Nc3 {[%clk 0:01:20]} 29. Rc2
{[%clk 0:00:40.5]} 29... Qc5 {[%clk 0:01:16.9]} 0-1

[Event "*** Titled Tuesday Blitz"]
[Site "Chess.com"]
[Date "2020.02.04"]
[Round "5"]
[White "2nd_life"]
[Black "vladimirdamjanovic"]
[Result "1-0"]
[WhiteElo "2446"]
[BlackElo "2605"]
[TimeControl "180+2"]
[EndTime "10:05:28 PST"]
[Termination "2nd_life won by checkmate"]

1. e4 {[%clk 0:03:01.9]} 1... c6 {[%clk 0:03:00.6]} 2. d4 {[%clk 0:03:02.7]}
2... d5 {[%clk 0:03:02.2]} 3. e5 {[%clk 0:03:03]} 3... Bf5 {[%clk 0:03:03.4]} 4.
h4 {[%clk 0:03:03.9]} 4... h5 {[%clk 0:03:04.1]} 5. Bd3 {[%clk 0:03:04.8]} 5...
Bxd3 {[%clk 0:03:04.9]} 6. Qxd3 {[%clk 0:03:06.7]} 6... Qa5+ {[%clk 0:03:02.6]}
7. Nd2 {[%clk 0:03:03.8]} 7... e6 {[%clk 0:03:03.3]} 8. Nf3 {[%clk 0:03:02.3]}
8... Ne7 {[%clk 0:03:02]} 9. b3 {[%clk 0:02:59]} 9... Nf5 {[%clk 0:02:56.9]} 10.
O-O {[%clk 0:02:51.8]} 10... Be7 {[%clk 0:02:49.7]} 11. g3 {[%clk 0:02:46.9]}
11... O-O {[%clk 0:02:48.9]} 12. c4 {[%clk 0:02:39.8]} 12... Na6 {[%clk
0:02:35.3]} 13. a3 {[%clk 0:02:21.7]} 13... Rfd8 {[%clk 0:02:22.9]} 14. c5
{[%clk 0:02:00]} 14... b6 {[%clk 0:01:59.2]} 15. b4 {[%clk 0:01:59.3]} 15...
Nxb4 {[%clk 0:01:55.8]} 16. Qc3 {[%clk 0:01:56.8]} 16... Na6 {[%clk 0:01:40.1]}
17. Qxa5 {[%clk 0:01:56.8]} 17... bxa5 {[%clk 0:01:42]} 18. Nb3 {[%clk
0:01:58.1]} 18... a4 {[%clk 0:01:40.1]} 19. Na5 {[%clk 0:01:56]} 19... Rdc8
{[%clk 0:01:41.3]} 20. Bg5 {[%clk 0:01:39.5]} 20... f6 {[%clk 0:01:37.6]} 21.
Bf4 {[%clk 0:01:40.5]} 21... Kf7 {[%clk 0:01:02.1]} 22. Rab1 {[%clk 0:01:34.6]}
22... Ke8 {[%clk 0:00:25.3]} 23. Rb7 {[%clk 0:01:19.7]} 23... Bd8 {[%clk
0:00:15.2]} 24. exf6 {[%clk 0:01:15.6]} 24... gxf6 {[%clk 0:00:07.3]} 25. Re1
{[%clk 0:01:14.6]} 25... Bxa5 {[%clk 0:00:03]} 26. Rxe6+ {[%clk 0:01:15]} 26...
Kd8 {[%clk 0:00:04.5]} 27. Rxf6 {[%clk 0:01:16.1]} 27... Ng7 {[%clk 0:00:03.1]}
28. Rf8+ {[%clk 0:01:15.9]} 28... Ne8 {[%clk 0:00:03.9]} 29. Bg5# {[%clk
0:01:17.2]} 1-0

[Event "*** Titled Tuesday Blitz"]
[Site "Chess.com"]
[Date "2020.02.04"]
[Round "5"]
[White "zurzan"]
[Black "guillembaches"]
[Result "0-1"]
[WhiteElo "1994"]
[BlackElo "2332"]
[TimeControl "180+2"]
[EndTime "10:05:35 PST"]
[Termination "guillembaches won by resignation"]

1. f4 {[%clk 0:03:01.9]} 1... g6 {[%clk 0:02:59.6]} 2. Nf3 {[%clk 0:03:02.3]}
2... Bg7 {[%clk 0:02:59.8]} 3. g3 {[%clk 0:03:04.2]} 3... d5 {[%clk 0:02:59.5]}
4. Bg2 {[%clk 0:03:06.1]} 4... Nf6 {[%clk 0:02:59.5]} 5. O-O {[%clk 0:03:08]}
5... O-O {[%clk 0:03:00.7]} 6. d3 {[%clk 0:03:09.2]} 6... d4 {[%clk 0:03:01.9]}
7. c3 {[%clk 0:03:11.1]} 7... c5 {[%clk 0:03:01.6]} 8. e4 {[%clk 0:03:08.6]}
8... dxe3 {[%clk 0:02:59.3]} 9. Bxe3 {[%clk 0:03:09.4]} 9... Qc7 {[%clk
0:02:55.3]} 10. Na3 {[%clk 0:03:05]} 10... Ng4 {[%clk 0:02:46.5]} 11. Bd2 {[%clk
0:02:54.9]} 11... Rd8 {[%clk 0:02:43.7]} 12. h3 {[%clk 0:02:51]} 12... Nh6
{[%clk 0:02:40.5]} 13. Qe2 {[%clk 0:02:49.9]} 13... Nf5 {[%clk 0:02:41.5]} 14.
Kh2 {[%clk 0:02:45.9]} 14... Nc6 {[%clk 0:02:33.9]} 15. g4 {[%clk 0:02:38.4]}
15... Nd6 {[%clk 0:02:31.3]} 16. Ne5 {[%clk 0:02:29.7]} 16... Bd7 {[%clk
0:02:24]} 17. Be3 {[%clk 0:02:19.7]} 17... Nxe5 {[%clk 0:02:20.7]} 18. fxe5
{[%clk 0:02:20.4]} 18... Bxe5+ {[%clk 0:02:22]} 19. Kh1 {[%clk 0:02:22]} 19...
Bc6 {[%clk 0:02:18.7]} 20. Qf2 {[%clk 0:02:20.1]} 20... Bxg2+ {[%clk 0:02:16.5]}
21. Kxg2 {[%clk 0:02:21.1]} 21... e6 {[%clk 0:02:00.9]} 22. Nc4 {[%clk
0:02:16.7]} 22... Nxc4 {[%clk 0:01:56.8]} 23. dxc4 {[%clk 0:02:18.6]} 23... b6
{[%clk 0:01:55.2]} 24. Rad1 {[%clk 0:02:14.2]} 24... Rxd1 {[%clk 0:01:53.5]} 25.
Rxd1 {[%clk 0:02:16.1]} 25... Rd8 {[%clk 0:01:54]} 26. Rxd8+ {[%clk 0:02:15.9]}
26... Qxd8 {[%clk 0:01:55.9]} 27. h4 {[%clk 0:01:59.6]} 27... Qa8+ {[%clk
0:01:51.8]} 28. Kg1 {[%clk 0:01:58.8]} 28... Qe4 {[%clk 0:01:51.4]} 29. Qd2
{[%clk 0:01:34.8]} 29... Qxg4+ {[%clk 0:01:49.3]} 30. Kf1 {[%clk 0:01:35.5]}
30... Qxc4+ {[%clk 0:01:49.6]} 31. Kg1 {[%clk 0:01:31.9]} 31... Qd5 {[%clk
0:01:45]} 32. Qe2 {[%clk 0:01:26.3]} 32... h5 {[%clk 0:01:42.3]} 33. Bg5 {[%clk
0:01:19.3]} 33... Kg7 {[%clk 0:01:38]} 34. Qe3 {[%clk 0:01:13.2]} 34... Bf6
{[%clk 0:01:31.4]} 35. Bxf6+ {[%clk 0:01:00.2]} 35... Kxf6 {[%clk 0:01:32.3]}
36. Qf2+ {[%clk 0:00:53]} 36... Qf5 {[%clk 0:01:32]} 37. Qh2 {[%clk 0:00:48.6]}
37... Qg4+ {[%clk 0:01:26.2]} 38. Kf1 {[%clk 0:00:47.9]} 38... Qf5+ {[%clk
0:01:25.5]} 39. Kg1 {[%clk 0:00:44.4]} 39... Qb1+ {[%clk 0:01:26.3]} 40. Kg2
{[%clk 0:00:43.7]} 40... Qxb2+ {[%clk 0:01:27.4]} 0-1

[Event "*** Titled Tuesday Blitz"]
[Site "Chess.com"]
[Date "2020.02.04"]
[Round "5"]
[White "kleinebeer98"]
[Black "obliviate12"]
[Result "0-1"]
[WhiteElo "2678"]
[BlackElo "2874"]
[TimeControl "180+2"]
[EndTime "10:05:43 PST"]
[Termination "obliviate12 won by resignation"]

1. e4 {[%clk 0:03:01.9]} 1... c5 {[%clk 0:02:59.4]} 2. Nf3 {[%clk 0:03:03.1]}
2... d6 {[%clk 0:03:01.3]} 3. d4 {[%clk 0:03:04.7]} 3... cxd4 {[%clk 0:03:03.2]}
4. Nxd4 {[%clk 0:03:06.6]} 4... Nf6 {[%clk 0:03:04.4]} 5. Nc3 {[%clk 0:03:08.2]}
5... a6 {[%clk 0:03:05.9]} 6. h3 {[%clk 0:03:09.7]} 6... e5 {[%clk 0:03:06.7]}
7. Nb3 {[%clk 0:03:11.2]} 7... Be7 {[%clk 0:03:07.6]} 8. f4 {[%clk 0:03:10.1]}
8... Nbd7 {[%clk 0:03:06]} 9. g4 {[%clk 0:03:09.5]} 9... O-O {[%clk 0:02:50]}
10. g5 {[%clk 0:03:08.7]} 10... Ne8 {[%clk 0:02:46]} 11. Nd5 {[%clk 0:03:00.6]}
11... exf4 {[%clk 0:02:38.5]} 12. h4 {[%clk 0:02:58.3]} 12... f6 {[%clk
0:02:27.1]} 13. Bc4 {[%clk 0:02:49]} 13... Kh8 {[%clk 0:02:24.2]} 14. Bxf4
{[%clk 0:02:42.2]} 14... Ne5 {[%clk 0:02:23.7]} 15. Bxe5 {[%clk 0:02:39.3]}
15... dxe5 {[%clk 0:02:23.8]} 16. Qh5 {[%clk 0:02:34.5]} 16... b5 {[%clk
0:02:04.1]} 17. Bd3 {[%clk 0:02:17.7]} 17... g6 {[%clk 0:01:47]} 18. Qh6 {[%clk
0:02:05.6]} 18... Rf7 {[%clk 0:01:24.6]} 19. h5 {[%clk 0:01:49.4]} 19... Bf8
{[%clk 0:01:23.5]} 20. hxg6 {[%clk 0:01:50.6]} 20... Bxh6 {[%clk 0:01:23.8]} 21.
gxf7 {[%clk 0:01:52]} 21... Nd6 {[%clk 0:01:09.1]} 22. Rxh6 {[%clk 0:01:51.8]}
22... Nxf7 {[%clk 0:01:10]} 23. Rxf6 {[%clk 0:01:53]} 23... Bg4 {[%clk
0:00:58.7]} 24. Rxf7 {[%clk 0:01:51.4]} 24... Qxg5 {[%clk 0:00:59.8]} 25. Kf2
{[%clk 0:01:23.8]} 25... Qh4+ {[%clk 0:00:48.7]} 26. Ke3 {[%clk 0:01:24.3]}
26... Qh6+ {[%clk 0:00:33.8]} 27. Kf2 {[%clk 0:01:24.7]} 27... Rf8 {[%clk
0:00:24.6]} 28. Rxf8+ {[%clk 0:01:20.4]} 28... Qxf8+ {[%clk 0:00:26.4]} 29. Kg3
{[%clk 0:01:22.3]} 29... Qf3+ {[%clk 0:00:25.7]} 30. Kh4 {[%clk 0:01:23.6]}
30... Qh3+ {[%clk 0:00:21.5]} 31. Kg5 {[%clk 0:01:24.6]} 31... Kg7 {[%clk
0:00:23.4]} 0-1